[Event "Titled Tuesday Blitz December 06 Early 2022"]
[White "Carrasco Miranda, Andres"]
[Black "Flis, Pawel"]
[WhiteFideId "3405990"]
[BlackFideId "1112864"]
[WhiteElo "2183"]
[BlackElo "1817"]
[Result "1-0"]
[Round "03"]
[TimeControl "180+1"]
[Date "2022.12.07"]
[WhiteClock "0:01:32"]
[BlackClock "0:00:01"]

1. d4 {[%clk 0:02:55]}  c5 {[%clk 0:02:59]} 2. d5 {[%clk 0:02:55]}  Nf6 {[%clk 0:02:59]} 3. c4 {[%clk 0:02:55]}  b5 {[%clk 0:02:59]} 4. cxb5 {[%clk 0:02:55]}  a6 {[%clk 0:02:59]} 5. bxa6 {[%clk 0:02:56]}  Bxa6 {[%clk 0:02:59]} 6. Nc3 {[%clk 0:02:56]}  g6 {[%clk 0:02:59]} 7. e4 {[%clk 0:02:57]}  Bxf1 {[%clk 0:03:00]} 8. Kxf1 {[%clk 0:02:57]}  d6 {[%clk 0:03:00]} 9. g3 {[%clk 0:02:58]}  Bg7 {[%clk 0:03:00]} 10. Kg2 {[%clk 0:02:58]}  O-O {[%clk 0:03:01]} 11. Nf3 {[%clk 0:02:58]}  Nbd7 {[%clk 0:03:01]} 12. a4 {[%clk 0:02:58]}  Ra6 {[%clk 0:02:59]} 13. Ra3 {[%clk 0:02:53]}  Qa8 {[%clk 0:02:47]} 14. Re1 {[%clk 0:02:52]}  e6 {[%clk 0:02:46]} 15. dxe6 {[%clk 0:02:50]}  fxe6 {[%clk 0:02:46]} 16. Kg1 {[%clk 0:02:50]}  d5 {[%clk 0:02:42]} 17. exd5 {[%clk 0:02:50]}  exd5 {[%clk 0:02:41]} 18. Re7 {[%clk 0:02:46]}  d4 {[%clk 0:02:33]} 19. Nb5 {[%clk 0:02:25]}  Ng4 {[%clk 0:02:13]} 20. Nc7 {[%clk 0:02:08]}  Qd8 {[%clk 0:01:46]} 21. Rxg7+ {[%clk 0:02:07]}  Kxg7 {[%clk 0:01:44]} 22. Qe2 {[%clk 0:01:47]}  Qxc7 {[%clk 0:00:26]} 23. Qxa6 {[%clk 0:01:46]}  Nde5 {[%clk 0:00:20]} 24. Bf4 {[%clk 0:01:41]}  Nxf3+ {[%clk 0:00:18]} 25. Rxf3 {[%clk 0:01:41]}  Qe7 {[%clk 0:00:16]} 26. Kg2 {[%clk 0:01:37]}  h5 {[%clk 0:00:16]} 27. Bd6 {[%clk 0:01:34]}  Qe8 {[%clk 0:00:01]} 28. Bxf8+ {[%clk 0:01:34]}  Qxf8 {[%clk 0:00:01]} 29. Rxf8 {[%clk 0:01:33]}  Kxf8 {[%clk 0:00:02]} 30. Qxg6 {[%clk 0:01:33]}  d3 {[%clk 0:00:01]} 31. Qxd3 {[%clk 0:01:32]} 1-0


[Site "https://www.chess.com"]

[Event "Titled Tuesday Blitz December 06 Early 2022"]
[White "Caruana, Fabiano"]
[Black "Wong, Yinn Long"]
[WhiteFideId "2020009"]
[BlackFideId "5707684"]
[WhiteElo "2847"]
[BlackElo "2271"]
[Result "1-0"]
[Round "03"]
[TimeControl "180+1"]
[Date "2022.12.06"]
[WhiteClock "0:01:44"]
[BlackClock "0:01:35"]

1. d4 {[%clk 0:03:00]}  Nf6 {[%clk 0:02:59]} 2. c4 {[%clk 0:03:00]}  e6 {[%clk 0:03:00]} 3. g4 {[%clk 0:03:00]}  Nxg4 {[%clk 0:02:57]} 4. e4 {[%clk 0:03:00]}  f5 {[%clk 0:02:57]} 5. Nc3 {[%clk 0:02:56]}  Bb4 {[%clk 0:02:54]} 6. e5 {[%clk 0:02:34]}  c5 {[%clk 0:02:29]} 7. a3 {[%clk 0:02:23]}  Qh4 {[%clk 0:02:25]} 8. Qe2 {[%clk 0:02:18]}  cxd4 {[%clk 0:02:19]} 9. axb4 {[%clk 0:02:15]}  dxc3 {[%clk 0:02:19]} 10. bxc3 {[%clk 0:02:15]}  Nc6 {[%clk 0:02:19]} 11. Nf3 {[%clk 0:02:15]}  Qh5 {[%clk 0:02:18]} 12. Bg2 {[%clk 0:02:04]}  Ngxe5 {[%clk 0:02:16]} 13. b5 {[%clk 0:02:04]}  Nxf3+ {[%clk 0:01:59]} 14. Bxf3 {[%clk 0:02:05]}  Qh4 {[%clk 0:02:00]} 15. bxc6 {[%clk 0:02:04]}  bxc6 {[%clk 0:02:01]} 16. Ba3 {[%clk 0:01:55]}  Rb8 {[%clk 0:01:54]} 17. Bb4 {[%clk 0:01:51]}  g5 {[%clk 0:01:43]} 18. O-O {[%clk 0:01:45]}  g4 {[%clk 0:01:43]} 19. Bg2 {[%clk 0:01:45]}  a6 {[%clk 0:01:35]} 20. Qe5 {[%clk 0:01:44]} 1-0


[Site "https://www.chess.com"]

[Event "Titled Tuesday Blitz December 06 Early 2022"]
[White "Clawitter, Craig"]
[Black "Fiedorek, Michal"]
[WhiteFideId "2023105"]
[BlackFideId "1199528"]
[WhiteElo "2178"]
[BlackElo "2201"]
[Result "0-1"]
[Round "03"]
[TimeControl "180+1"]
[Date "2022.12.07"]
[WhiteClock "0:00:08"]
[BlackClock "0:00:24"]

1. e4 {[%clk 0:02:05]}  c6 {[%clk 0:02:57]} 2. Nf3 {[%clk 0:02:04]}  d5 {[%clk 0:02:57]} 3. e5 {[%clk 0:02:05]}  Bg4 {[%clk 0:02:55]} 4. d4 {[%clk 0:02:06]}  c5 {[%clk 0:02:51]} 5. dxc5 {[%clk 0:02:04]}  e6 {[%clk 0:02:50]} 6. c3 {[%clk 0:02:03]}  Nc6 {[%clk 0:02:50]} 7. Bb5 {[%clk 0:02:02]}  Qc7 {[%clk 0:02:18]} 8. Nbd2 {[%clk 0:01:42]}  Bxc5 {[%clk 0:02:11]} 9. O-O {[%clk 0:01:42]}  Ne7 {[%clk 0:02:07]} 10. Qa4 {[%clk 0:01:42]}  Bxf3 {[%clk 0:01:58]} 11. Nxf3 {[%clk 0:01:43]}  O-O {[%clk 0:01:58]} 12. Qg4 {[%clk 0:01:37]}  Ng6 {[%clk 0:01:53]} 13. Bxc6 {[%clk 0:01:24]}  bxc6 {[%clk 0:01:52]} 14. b4 {[%clk 0:01:22]}  Be7 {[%clk 0:01:50]} 15. Re1 {[%clk 0:01:20]}  a5 {[%clk 0:01:48]} 16. h4 {[%clk 0:01:18]}  Rfb8 {[%clk 0:01:26]} 17. h5 {[%clk 0:01:15]}  Nf8 {[%clk 0:01:26]} 18. Bh6 {[%clk 0:00:59]}  g6 {[%clk 0:01:23]} 19. Bg5 {[%clk 0:01:00]}  axb4 {[%clk 0:01:21]} 20. Bf6 {[%clk 0:00:46]}  bxc3 {[%clk 0:01:09]} 21. Qg5 {[%clk 0:00:40]}  Bxf6 {[%clk 0:00:53]} 22. exf6 {[%clk 0:00:35]}  Qd8 {[%clk 0:00:53]} 23. Ne5 {[%clk 0:00:29]}  Rb6 {[%clk 0:00:34]} 24. Re3 {[%clk 0:00:15]}  h6 {[%clk 0:00:34]} 25. Qxh6 {[%clk 0:00:13]}  Qxf6 {[%clk 0:00:33]} 26. Nd7 {[%clk 0:00:08]}  Nxd7 {[%clk 0:00:29]} 27. hxg6 {[%clk 0:00:08]}  fxg6 {[%clk 0:00:25]} 28. Rf3 {[%clk 0:00:08]}  Qg7 {[%clk 0:00:24]} 0-1


[Site "https://www.chess.com"]

[Event "Titled Tuesday Blitz December 06 Early 2022"]
[White "Concio, Michael Jr."]
[Black "Sadilek, Peter"]
[WhiteFideId "5217873"]
[BlackFideId "1616439"]
[WhiteElo "2263"]
[BlackElo "2227"]
[Result "1-0"]
[Round "03"]
[TimeControl "180+1"]
[Date "2022.12.07"]
[WhiteClock "0:00:32"]
[BlackClock "0:00:30"]

1. e4 {[%clk 0:02:31]}  e6 {[%clk 0:02:58]} 2. d3 {[%clk 0:02:31]}  d5 {[%clk 0:02:59]} 3. Nd2 {[%clk 0:02:30]}  Nf6 {[%clk 0:02:59]} 4. Ngf3 {[%clk 0:02:30]}  g6 {[%clk 0:03:00]} 5. g3 {[%clk 0:02:30]}  Bg7 {[%clk 0:03:01]} 6. Bg2 {[%clk 0:02:31]}  O-O {[%clk 0:03:02]} 7. O-O {[%clk 0:02:31]}  c5 {[%clk 0:03:02]} 8. c3 {[%clk 0:02:32]}  Nc6 {[%clk 0:03:03]} 9. Qc2 {[%clk 0:02:32]}  b6 {[%clk 0:03:01]} 10. Rd1 {[%clk 0:02:32]}  a5 {[%clk 0:02:59]} 11. Nf1 {[%clk 0:02:29]}  Ba6 {[%clk 0:02:51]} 12. Bg5 {[%clk 0:02:14]}  h6 {[%clk 0:02:49]} 13. Bxf6 {[%clk 0:02:11]}  Bxf6 {[%clk 0:02:50]} 14. exd5 {[%clk 0:02:10]}  exd5 {[%clk 0:02:49]} 15. d4 {[%clk 0:02:10]}  cxd4 {[%clk 0:02:32]} 16. Nxd4 {[%clk 0:02:09]}  Nxd4 {[%clk 0:02:32]} 17. cxd4 {[%clk 0:02:08]}  Bxf1 {[%clk 0:02:16]} 18. Kxf1 {[%clk 0:02:09]}  Rc8 {[%clk 0:02:10]} 19. Qd2 {[%clk 0:02:09]}  Rc4 {[%clk 0:01:56]} 20. Qxh6 {[%clk 0:01:59]}  Rxd4 {[%clk 0:01:56]} 21. Rxd4 {[%clk 0:01:59]}  Bxd4 {[%clk 0:01:57]} 22. Rd1 {[%clk 0:01:59]}  Bxb2 {[%clk 0:01:38]} 23. Bxd5 {[%clk 0:01:58]}  Bg7 {[%clk 0:01:37]} 24. Qxg6 {[%clk 0:01:45]}  Qxd5 {[%clk 0:01:29]} 25. Qxg7+ {[%clk 0:01:44]}  Kxg7 {[%clk 0:01:29]} 26. Rxd5 {[%clk 0:01:45]}  Rc8 {[%clk 0:01:24]} 27. Rb5 {[%clk 0:01:45]}  Rc2 {[%clk 0:01:20]} 28. Rxb6 {[%clk 0:01:44]}  Rxa2 {[%clk 0:01:21]} 29. h4 {[%clk 0:01:44]}  f5 {[%clk 0:01:17]} 30. Kg2 {[%clk 0:01:42]}  Ra3 {[%clk 0:01:06]} 31. Ra6 {[%clk 0:01:38]}  Kf7 {[%clk 0:01:03]} 32. Kf1 {[%clk 0:01:18]}  f4 {[%clk 0:00:52]} 33. Kg2 {[%clk 0:00:30]}  fxg3 {[%clk 0:00:52]} 34. fxg3 {[%clk 0:00:31]}  Kg7 {[%clk 0:00:53]} 35. h5 {[%clk 0:00:30]}  Ra1 {[%clk 0:00:50]} 36. Kh3 {[%clk 0:00:30]}  Ra4 {[%clk 0:00:48]} 37. g4 {[%clk 0:00:30]}  Kh7 {[%clk 0:00:30]} 38. Kh4 {[%clk 0:00:31]}  Kg7 {[%clk 0:00:30]} 39. Kg5 {[%clk 0:00:31]}  Kh7 {[%clk 0:00:31]} 40. Ra7+ {[%clk 0:00:32]}  Kg8 {[%clk 0:00:32]} 41. Kf5 {[%clk 0:00:32]}  Ra1 {[%clk 0:00:29]} 42. Kg6 {[%clk 0:00:32]}  Kf8 {[%clk 0:00:30]} 43. h6 {[%clk 0:00:32]} 1-0


[Site "https://www.chess.com"]

[Event "Titled Tuesday Blitz December 06 Early 2022"]
[White "Cramling Bellon, Anna"]
[Black "Valle Maytin, Luis Enrique"]
[WhiteFideId "32009232"]
[BlackFideId "3503666"]
[WhiteElo "1972"]
[BlackElo "2225"]
[Result "0-1"]
[Round "03"]
[TimeControl "180+1"]
[Date "2022.12.07"]
[WhiteClock "0:00:01"]
[BlackClock "0:00:02"]

1. d4 {[%clk 0:03:00]}  Nf6 {[%clk 0:02:58]} 2. c4 {[%clk 0:03:00]}  d5 {[%clk 0:02:55]} 3. cxd5 {[%clk 0:03:01]}  Nxd5 {[%clk 0:02:50]} 4. e4 {[%clk 0:03:01]}  Nb6 {[%clk 0:02:50]} 5. Nf3 {[%clk 0:03:00]}  g6 {[%clk 0:02:43]} 6. Nc3 {[%clk 0:02:59]}  Bg7 {[%clk 0:02:42]} 7. Be3 {[%clk 0:02:59]}  O-O {[%clk 0:02:42]} 8. Be2 {[%clk 0:02:58]}  Be6 {[%clk 0:02:37]} 9. O-O {[%clk 0:02:58]}  Bc4 {[%clk 0:02:37]} 10. d5 {[%clk 0:02:55]}  Bxe2 {[%clk 0:02:32]} 11. Qxe2 {[%clk 0:02:55]}  N8d7 {[%clk 0:02:32]} 12. Rfd1 {[%clk 0:02:50]}  Rc8 {[%clk 0:02:30]} 13. Rac1 {[%clk 0:02:50]}  Qe8 {[%clk 0:02:22]} 14. Nb5 {[%clk 0:02:42]}  c6 {[%clk 0:01:57]} 15. dxc6 {[%clk 0:02:27]}  Rxc6 {[%clk 0:01:45]} 16. Rxc6 {[%clk 0:02:23]}  bxc6 {[%clk 0:01:45]} 17. Nxa7 {[%clk 0:02:22]}  Qa8 {[%clk 0:01:27]} 18. Qa6 {[%clk 0:02:11]}  Rb8 {[%clk 0:01:23]} 19. Qa3 {[%clk 0:00:47]}  Bf8 {[%clk 0:00:59]} 20. Nd4 {[%clk 0:00:12]}  e5 {[%clk 0:00:54]} 21. Qa5 {[%clk 0:00:03]}  exd4 {[%clk 0:00:52]} 22. Bxd4 {[%clk 0:00:03]}  Rb7 {[%clk 0:00:44]} 23. Nxc6 {[%clk 0:00:03]}  Qxa5 {[%clk 0:00:39]} 24. Nxa5 {[%clk 0:00:04]}  Rc7 {[%clk 0:00:35]} 25. Nb3 {[%clk 0:00:04]}  Nc4 {[%clk 0:00:33]} 26. Bc3 {[%clk 0:00:03]}  Bg7 {[%clk 0:00:29]} 27. g3 {[%clk 0:00:03]}  Nxb2 {[%clk 0:00:26]} 28. Bxb2 {[%clk 0:00:01]}  Bxb2 {[%clk 0:00:26]} 29. Rd2 {[%clk 0:00:02]}  Bc3 {[%clk 0:00:26]} 30. Rc2 {[%clk 0:00:02]}  Be5 {[%clk 0:00:25]} 31. Rxc7 {[%clk 0:00:02]}  Bxc7 {[%clk 0:00:26]} 32. a4 {[%clk 0:00:02]}  Nb6 {[%clk 0:00:24]} 33. a5 {[%clk 0:00:02]}  Nc4 {[%clk 0:00:21]} 34. a6 {[%clk 0:00:02]}  Bb6 {[%clk 0:00:20]} 35. Kf1 {[%clk 0:00:01]}  Na3 {[%clk 0:00:15]} 36. Ke2 {[%clk 0:00:01]}  Nc2 {[%clk 0:00:16]} 37. Kd3 {[%clk 0:00:01]}  Nb4+ {[%clk 0:00:16]} 38. Kc4 {[%clk 0:00:01]}  Nxa6 {[%clk 0:00:16]} 39. Kb5 {[%clk 0:00:02]}  Bxf2 {[%clk 0:00:17]} 40. Kxa6 {[%clk 0:00:02]}  Bg1 {[%clk 0:00:17]} 41. h3 {[%clk 0:00:02]}  Bh2 {[%clk 0:00:17]} 42. g4 {[%clk 0:00:02]}  Kg7 {[%clk 0:00:16]} 43. Kb5 {[%clk 0:00:02]}  Kf6 {[%clk 0:00:17]} 44. Kc4 {[%clk 0:00:03]}  Ke5 {[%clk 0:00:17]} 45. Kd3 {[%clk 0:00:02]}  Kf4 {[%clk 0:00:18]} 46. Nc5 {[%clk 0:00:01]}  Kg3 {[%clk 0:00:17]} 47. Nd7 {[%clk 0:00:01]}  Kxh3 {[%clk 0:00:16]} 48. Nf6 {[%clk 0:00:02]}  Be5 {[%clk 0:00:14]} 49. Nxh7 {[%clk 0:00:02]}  Kxg4 {[%clk 0:00:14]} 50. Nf8 {[%clk 0:00:02]}  Bd6 {[%clk 0:00:09]} 51. Nd7 {[%clk 0:00:02]}  Kf4 {[%clk 0:00:04]} 52. Nb6 {[%clk 0:00:02]}  g5 {[%clk 0:00:03]} 53. Nd5+ {[%clk 0:00:02]}  Kf3 {[%clk 0:00:03]} 54. Nf6 {[%clk 0:00:01]}  g4 {[%clk 0:00:02]} 0-1


[Site "https://www.chess.com"]

[Event "Titled Tuesday Blitz December 06 Early 2022"]
[White "Czopor, Maciej"]
[Black "Meduri, Aakaash"]
[WhiteFideId "21805431"]
[BlackFideId "2032252"]
[WhiteElo "2324"]
[BlackElo "2113"]
[Result "0-1"]
[Round "03"]
[TimeControl "180+1"]
[Date "2022.12.07"]
[WhiteClock "0:00:01"]
[BlackClock "0:00:11"]

1. c4 {[%clk 0:02:58]}  c6 {[%clk 0:02:59]} 2. Nf3 {[%clk 0:02:56]}  d5 {[%clk 0:02:58]} 3. b3 {[%clk 0:02:57]}  Nf6 {[%clk 0:02:52]} 4. Bb2 {[%clk 0:02:57]}  Bf5 {[%clk 0:02:52]} 5. e3 {[%clk 0:02:57]}  e6 {[%clk 0:02:50]} 6. g3 {[%clk 0:02:56]}  h6 {[%clk 0:02:50]} 7. d3 {[%clk 0:02:54]}  Be7 {[%clk 0:02:49]} 8. Bg2 {[%clk 0:02:53]}  O-O {[%clk 0:02:49]} 9. O-O {[%clk 0:02:53]}  Nbd7 {[%clk 0:02:49]} 10. Qe2 {[%clk 0:02:52]}  Bh7 {[%clk 0:02:48]} 11. Rd1 {[%clk 0:02:50]}  Qc7 {[%clk 0:02:41]} 12. Nc3 {[%clk 0:02:49]}  a5 {[%clk 0:02:41]} 13. Rac1 {[%clk 0:02:44]}  Rad8 {[%clk 0:02:34]} 14. cxd5 {[%clk 0:02:26]}  exd5 {[%clk 0:02:35]} 15. Nd4 {[%clk 0:02:25]}  Rfe8 {[%clk 0:02:30]} 16. Nxd5 {[%clk 0:02:22]}  Nxd5 {[%clk 0:02:17]} 17. Bxd5 {[%clk 0:02:22]}  Ne5 {[%clk 0:02:10]} 18. Be4 {[%clk 0:02:16]}  Bxe4 {[%clk 0:01:58]} 19. dxe4 {[%clk 0:02:17]}  a4 {[%clk 0:01:26]} 20. f4 {[%clk 0:02:03]}  Ng6 {[%clk 0:01:25]} 21. e5 {[%clk 0:01:57]}  axb3 {[%clk 0:01:18]} 22. axb3 {[%clk 0:01:57]}  Qb6 {[%clk 0:01:19]} 23. Qc4 {[%clk 0:01:42]}  Rd5 {[%clk 0:01:08]} 24. Nf5 {[%clk 0:01:37]}  Bc5 {[%clk 0:00:52]} 25. Bd4 {[%clk 0:01:15]}  Bxd4 {[%clk 0:00:50]} 26. exd4 {[%clk 0:01:10]}  Nf8 {[%clk 0:00:50]} 27. Nd6 {[%clk 0:00:53]}  Ra8 {[%clk 0:00:50]} 28. f5 {[%clk 0:00:32]}  Nd7 {[%clk 0:00:44]} 29. Kg2 {[%clk 0:00:15]}  Ra2+ {[%clk 0:00:43]} 30. Kh3 {[%clk 0:00:15]}  Nxe5 {[%clk 0:00:39]} 31. dxe5 {[%clk 0:00:14]}  Qf2 {[%clk 0:00:39]} 32. Rxd5 {[%clk 0:00:05]}  Qg2+ {[%clk 0:00:30]} 33. Kg4 {[%clk 0:00:02]}  cxd5 {[%clk 0:00:29]} 34. Qc8+ {[%clk 0:00:02]}  Kh7 {[%clk 0:00:30]} 35. Nxf7 {[%clk 0:00:02]}  Qe4+ {[%clk 0:00:23]} 36. Kh3 {[%clk 0:00:02]}  Qg2+ {[%clk 0:00:22]} 37. Kg4 {[%clk 0:00:03]}  Qe2+ {[%clk 0:00:19]} 38. Kh4 {[%clk 0:00:02]}  Qxh2+ {[%clk 0:00:19]} 39. Kg4 {[%clk 0:00:02]}  Qe2+ {[%clk 0:00:19]} 40. Kh4 {[%clk 0:00:03]}  Qh2+ {[%clk 0:00:12]} 41. Kg4 {[%clk 0:00:03]}  h5+ {[%clk 0:00:12]} 42. Kf3 {[%clk 0:00:01]}  Qf2# {[%clk 0:00:11]} 0-1


[Site "https://www.chess.com"]

[Event "Titled Tuesday Blitz December 06 Early 2022"]
[White "Daneshvar, Bardiya"]
[Black "Raahul V S"]
[WhiteFideId "12576468"]
[BlackFideId "25035525"]
[WhiteElo "2429"]
[BlackElo "2202"]
[Result "1-0"]
[Round "03"]
[TimeControl "180+1"]
[Date "2022.12.07"]
[WhiteClock "0:01:53"]
[BlackClock "0:00:04"]

1. b3 {[%clk 0:03:00]}  e5 {[%clk 0:02:57]} 2. Bb2 {[%clk 0:03:01]}  Nc6 {[%clk 0:02:57]} 3. e3 {[%clk 0:03:01]}  Nf6 {[%clk 0:02:57]} 4. Bb5 {[%clk 0:03:01]}  Bd6 {[%clk 0:02:57]} 5. Na3 {[%clk 0:03:02]}  Na5 {[%clk 0:02:57]} 6. Be2 {[%clk 0:03:01]}  a6 {[%clk 0:02:54]} 7. Nf3 {[%clk 0:02:56]}  Qe7 {[%clk 0:02:54]} 8. Qc1 {[%clk 0:02:54]}  c5 {[%clk 0:02:41]} 9. d3 {[%clk 0:02:46]}  O-O {[%clk 0:02:35]} 10. Nc4 {[%clk 0:02:42]}  Nxc4 {[%clk 0:02:30]} 11. bxc4 {[%clk 0:02:42]}  Bc7 {[%clk 0:02:23]} 12. e4 {[%clk 0:02:41]}  d6 {[%clk 0:02:11]} 13. a4 {[%clk 0:02:41]}  Bd7 {[%clk 0:02:02]} 14. a5 {[%clk 0:02:40]}  g6 {[%clk 0:01:58]} 15. O-O {[%clk 0:02:39]}  Nh5 {[%clk 0:01:58]} 16. Re1 {[%clk 0:02:39]}  Qf6 {[%clk 0:01:51]} 17. Qg5 {[%clk 0:02:38]}  Qg7 {[%clk 0:01:36]} 18. Bc1 {[%clk 0:02:37]}  f6 {[%clk 0:01:28]} 19. Qh6 {[%clk 0:02:37]}  Qxh6 {[%clk 0:01:21]} 20. Bxh6 {[%clk 0:02:38]}  Rfb8 {[%clk 0:01:22]} 21. Nd2 {[%clk 0:02:36]}  Ng7 {[%clk 0:01:16]} 22. Bxg7 {[%clk 0:02:35]}  Kxg7 {[%clk 0:01:17]} 23. Reb1 {[%clk 0:02:34]}  b6 {[%clk 0:01:01]} 24. axb6 {[%clk 0:02:35]}  Bxb6 {[%clk 0:01:02]} 25. Kf1 {[%clk 0:02:33]}  a5 {[%clk 0:01:01]} 26. Ke1 {[%clk 0:02:33]}  a4 {[%clk 0:01:01]} 27. Kd1 {[%clk 0:02:34]}  Bc6 {[%clk 0:01:00]} 28. c3 {[%clk 0:02:32]}  Kf7 {[%clk 0:00:56]} 29. Kc2 {[%clk 0:02:32]}  Ke7 {[%clk 0:00:56]} 30. Ra3 {[%clk 0:02:31]}  Bc7 {[%clk 0:00:44]} 31. Rxb8 {[%clk 0:02:29]}  Rxb8 {[%clk 0:00:45]} 32. Bd1 {[%clk 0:02:30]}  f5 {[%clk 0:00:42]} 33. Kc1 {[%clk 0:02:29]}  Kf6 {[%clk 0:00:38]} 34. f3 {[%clk 0:02:24]}  Bd8 {[%clk 0:00:34]} 35. Ra2 {[%clk 0:02:19]}  Ra8 {[%clk 0:00:17]} 36. Nb1 {[%clk 0:02:19]}  Ke6 {[%clk 0:00:16]} 37. Na3 {[%clk 0:02:18]}  Bg5+ {[%clk 0:00:15]} 38. Kb1 {[%clk 0:02:17]}  Rb8+ {[%clk 0:00:15]} 39. Rb2 {[%clk 0:02:18]}  Ra8 {[%clk 0:00:12]} 40. Rb6 {[%clk 0:02:16]}  Kd7 {[%clk 0:00:12]} 41. Ka2 {[%clk 0:02:12]}  Bd2 {[%clk 0:00:12]} 42. Kb2 {[%clk 0:02:06]}  Kc7 {[%clk 0:00:11]} 43. Rxc6+ {[%clk 0:02:01]}  Kxc6 {[%clk 0:00:11]} 44. Nb5 {[%clk 0:02:01]}  Be3 {[%clk 0:00:11]} 45. exf5 {[%clk 0:02:01]}  gxf5 {[%clk 0:00:11]} 46. f4 {[%clk 0:02:01]}  e4 {[%clk 0:00:10]} 47. dxe4 {[%clk 0:02:00]}  fxe4 {[%clk 0:00:11]} 48. Bc2 {[%clk 0:02:01]}  d5 {[%clk 0:00:11]} 49. g3 {[%clk 0:01:59]}  Bd2 {[%clk 0:00:11]} 50. Ka2 {[%clk 0:01:52]}  e3 {[%clk 0:00:10]} 51. Bd3 {[%clk 0:01:52]}  dxc4 {[%clk 0:00:10]} 52. Bxc4 {[%clk 0:01:53]}  Re8 {[%clk 0:00:08]} 53. Be2 {[%clk 0:01:53]}  Rb8 {[%clk 0:00:07]} 54. c4 {[%clk 0:01:53]}  Bb4 {[%clk 0:00:07]} 55. Bf3+ {[%clk 0:01:52]}  Kb6 {[%clk 0:00:06]} 56. Nd6 {[%clk 0:01:52]}  Rd8 {[%clk 0:00:07]} 57. Ne4 {[%clk 0:01:52]}  Rd3 {[%clk 0:00:06]} 58. f5 {[%clk 0:01:51]}  Ra3+ {[%clk 0:00:06]} 59. Kb2 {[%clk 0:01:51]}  Rb3+ {[%clk 0:00:07]} 60. Kc2 {[%clk 0:01:52]}  Ra3 {[%clk 0:00:04]} 61. f6 {[%clk 0:01:51]}  Ra2+ {[%clk 0:00:04]} 62. Kd3 {[%clk 0:01:52]}  Rxh2 {[%clk 0:00:03]} 63. f7 {[%clk 0:01:52]}  a3 {[%clk 0:00:04]} 64. f8=Q {[%clk 0:01:52]}  a2 {[%clk 0:00:05]} 65. Qb8+ {[%clk 0:01:52]}  Ka6 {[%clk 0:00:04]} 66. Nxc5+ {[%clk 0:01:52]}  Bxc5 {[%clk 0:00:04]} 67. Qb7+ {[%clk 0:01:52]}  Ka5 {[%clk 0:00:04]} 68. Qb5# {[%clk 0:01:53]} 1-0


[Site "https://www.chess.com"]

[Event "Titled Tuesday Blitz December 06 Early 2022"]
[White "Decuigniere, Tom"]
[Black "Slovineanu"]
[WhiteFideId "26093820"]
[WhiteElo "2288"]
[BlackElo "2220"]
[Result "0-1"]
[Round "03"]
[TimeControl "180+1"]
[Date "2022.12.07"]
[WhiteClock "0:00:00"]
[BlackClock "0:00:13"]

1. c4 {[%clk 0:03:00]}  e5 {[%clk 0:02:59]} 2. g3 {[%clk 0:02:58]}  c6 {[%clk 0:02:59]} 3. Nf3 {[%clk 0:02:58]}  e4 {[%clk 0:02:54]} 4. Nd4 {[%clk 0:02:58]}  d5 {[%clk 0:02:54]} 5. cxd5 {[%clk 0:02:59]}  Qxd5 {[%clk 0:02:55]} 6. Nc2 {[%clk 0:02:59]}  Nf6 {[%clk 0:02:52]} 7. Nc3 {[%clk 0:02:59]}  Qe5 {[%clk 0:02:52]} 8. Bg2 {[%clk 0:02:59]}  Na6 {[%clk 0:02:50]} 9. O-O {[%clk 0:02:59]}  Be7 {[%clk 0:02:48]} 10. d4 {[%clk 0:02:57]}  exd3 {[%clk 0:02:47]} 11. exd3 {[%clk 0:02:50]}  Bg4 {[%clk 0:02:34]} 12. f3 {[%clk 0:02:37]}  Be6 {[%clk 0:02:29]} 13. f4 {[%clk 0:02:15]}  Qh5 {[%clk 0:02:01]} 14. Qxh5 {[%clk 0:02:08]}  Nxh5 {[%clk 0:02:00]} 15. f5 {[%clk 0:02:07]}  Bd7 {[%clk 0:01:56]} 16. g4 {[%clk 0:01:39]}  Nf6 {[%clk 0:01:50]} 17. g5 {[%clk 0:01:40]}  Ng4 {[%clk 0:01:36]} 18. h3 {[%clk 0:01:33]}  Ne5 {[%clk 0:01:33]} 19. f6 {[%clk 0:01:27]}  gxf6 {[%clk 0:01:33]} 20. gxf6 {[%clk 0:01:28]}  Bd6 {[%clk 0:01:27]} 21. d4 {[%clk 0:01:23]}  Ng6 {[%clk 0:01:21]} 22. Re1+ {[%clk 0:01:22]}  Kd8 {[%clk 0:01:20]} 23. Ne4 {[%clk 0:01:19]}  Kc7 {[%clk 0:00:45]} 24. Nxd6 {[%clk 0:01:15]}  Kxd6 {[%clk 0:00:45]} 25. b3 {[%clk 0:01:11]}  Be6 {[%clk 0:00:34]} 26. Ba3+ {[%clk 0:01:05]}  Kd7 {[%clk 0:00:33]} 27. Ne3 {[%clk 0:01:03]}  Rhg8 {[%clk 0:00:27]} 28. Kh2 {[%clk 0:00:29]}  Nc7 {[%clk 0:00:25]} 29. Rad1 {[%clk 0:00:22]}  Nf4 {[%clk 0:00:23]} 30. Be4 {[%clk 0:00:21]}  Ncd5 {[%clk 0:00:19]} 31. Nxd5 {[%clk 0:00:10]}  cxd5 {[%clk 0:00:16]} 32. Bf3 {[%clk 0:00:08]}  Nxh3 {[%clk 0:00:14]} 33. Be7 {[%clk 0:00:00]}  Ng5 {[%clk 0:00:13]} 0-1


[Site "https://www.chess.com"]

[Event "Titled Tuesday Blitz December 06 Early 2022"]
[White "Dudzinski, Pawel"]
[Black "Sailer, Mike"]
[WhiteFideId "1117890"]
[BlackFideId "2012901"]
[WhiteElo "2099"]
[BlackElo "2109"]
[Result "1-0"]
[Round "03"]
[TimeControl "180+1"]
[Date "2022.12.07"]
[WhiteClock "0:01:38"]
[BlackClock "0:00:10"]

1. e4 {[%clk 0:02:57]}  d5 {[%clk 0:02:59]} 2. exd5 {[%clk 0:02:55]}  Qxd5 {[%clk 0:02:58]} 3. Nc3 {[%clk 0:02:55]}  Qd6 {[%clk 0:02:58]} 4. d4 {[%clk 0:02:55]}  Nf6 {[%clk 0:02:59]} 5. Nge2 {[%clk 0:02:56]}  c6 {[%clk 0:02:53]} 6. Bf4 {[%clk 0:02:56]}  Qd8 {[%clk 0:02:51]} 7. Ng3 {[%clk 0:02:57]}  h5 {[%clk 0:02:32]} 8. h4 {[%clk 0:02:54]}  Bg4 {[%clk 0:02:31]} 9. Qd2 {[%clk 0:02:54]}  g6 {[%clk 0:02:27]} 10. Bc4 {[%clk 0:02:53]}  Bg7 {[%clk 0:02:21]} 11. O-O {[%clk 0:02:48]}  Nbd7 {[%clk 0:02:05]} 12. f3 {[%clk 0:02:48]}  Bf5 {[%clk 0:02:04]} 13. Nxf5 {[%clk 0:02:46]}  gxf5 {[%clk 0:02:04]} 14. Rfe1 {[%clk 0:02:45]}  e6 {[%clk 0:02:04]} 15. Bd3 {[%clk 0:02:30]}  Kf8 {[%clk 0:01:39]} 16. Bd6+ {[%clk 0:02:14]}  Kg8 {[%clk 0:01:39]} 17. Qf2 {[%clk 0:02:06]}  Rh6 {[%clk 0:01:31]} 18. Bf4 {[%clk 0:02:03]}  Rg6 {[%clk 0:01:30]} 19. Bg5 {[%clk 0:02:03]}  Qc7 {[%clk 0:01:27]} 20. Ne2 {[%clk 0:02:03]}  Nf8 {[%clk 0:01:13]} 21. Nf4 {[%clk 0:01:47]}  Rxg5 {[%clk 0:01:05]} 22. hxg5 {[%clk 0:01:48]}  Qxf4 {[%clk 0:01:04]} 23. gxf6 {[%clk 0:01:48]}  Bxf6 {[%clk 0:01:04]} 24. c3 {[%clk 0:01:49]}  Ng6 {[%clk 0:00:59]} 25. Qe3 {[%clk 0:01:44]}  Qg3 {[%clk 0:00:52]} 26. Qf2 {[%clk 0:01:43]}  Qf4 {[%clk 0:00:52]} 27. g3 {[%clk 0:01:39]}  Qg5 {[%clk 0:00:45]} 28. f4 {[%clk 0:01:38]}  Qg4 {[%clk 0:00:37]} 29. Be2 {[%clk 0:01:37]}  Qh3 {[%clk 0:00:38]} 30. Qh2 {[%clk 0:01:37]}  Qxh2+ {[%clk 0:00:34]} 31. Kxh2 {[%clk 0:01:38]}  h4 {[%clk 0:00:29]} 32. Rg1 {[%clk 0:01:38]}  hxg3+ {[%clk 0:00:15]} 33. Kxg3 {[%clk 0:01:39]}  Kg7 {[%clk 0:00:14]} 34. Bh5 {[%clk 0:01:39]}  Rh8 {[%clk 0:00:12]} 35. Bxg6 {[%clk 0:01:38]}  fxg6 {[%clk 0:00:13]} 36. Rh1 {[%clk 0:01:38]}  Rg8 {[%clk 0:00:10]} 37. Kf3 {[%clk 0:01:38]}  g5 {[%clk 0:00:09]} 38. fxg5 {[%clk 0:01:39]}  Bxg5 {[%clk 0:00:10]} 39. Rh5 {[%clk 0:01:39]}  Kg6 {[%clk 0:00:10]} 40. Rxg5+ {[%clk 0:01:37]}  Kxg5 {[%clk 0:00:10]} 41. Rg1+ {[%clk 0:01:38]} 1-0


[Site "https://www.chess.com"]